[Event "WYCC U16 Girls 2019"]
[Site "Mumbai"]
[Date "2019.10.09"]
[Round "8.8"]
[White "Zhang, Xiao"]
[Black "Mehendi Sil"]
[Result "1-0"]
[ECO "A96"]
[WhiteElo "2053"]
[BlackElo "1812"]
[Annotator "NA"]
[PlyCount "155"]
[EventDate "2019.10.02"]
[EventType "swiss"]
[EventCountry "IND"]
[SourceTitle "playchess.com"]
[Source "ChessBase"]
[SourceQuality "1"]
[TimeControl "5400+30"]

1. d4 e6 2. Nf3 f5 3. g3 Nf6 4. Bg2 Be7 5. O-O d6 6. c4 O-O 7. Nc3 Ne4 8. Qc2 Nxc3 9. bxc3 Nc6 {A96: Classical Dutch: Fluid Systems: Early deviations} 10. e4 (10. d5 Na5 11. dxe6 Bxe6 12. Nd4 Bxc4 13. Nxf5 Bf6 14. Ne3 Bf7 15. Be4 h6 16. Rb1 Kh8 17. c4 {½-½ (25) Ding,L (2777)-Kravtsiv,M (2665) Tbilisi 2017}) 10... e5 11. a4 $146 ({Predecessor:} 11. Bb2 f4 12. c5 Qe8 13. cxd6 cxd6 14. gxf4 Rxf4 {0-1 (28) Chabanon,J (2446)-Polivanov,A (2364) Saint Quentin 2019}) 11... Qe8 12. Re1 Qf7 13. Qa2 fxe4 14. Rxe4 Bf5 15. Re1 exd4 16. Nxd4 Nxd4 17. cxd4 c6 18. Be3 Kh8 19. a5 a6 20. Qb3 Bf6 21. Ra4 Rae8 22. Rb4 Bc8 23. Rf1 Bd8 24. Ra4 Qh5 25. d5 c5 26. Raa1 Qg4 27. Rfe1 g5 28. Bd2 Re2 29. Bc3+ Kg8 30. Rxe2 Qxe2 31. Ra2 Qg4 32. h3 Qh5 33. g4 Qf7 34. Re2 h5 35. gxh5 g4 36. Bb2 Qxh5 37. hxg4 Bxg4 38. Qxb7 Qh7 39. Qxh7+ Kxh7 40. Re3 Rf7 41. Be4+ Bf5 42. Bc3 Bg5 $18 (42... Kg6 $16) 43. Bxf5+ Rxf5 44. Re4 Rf4 45. Rxf4 Bxf4 46. Kg2 Kg6 47. Kf3 Kf5 48. Bf6 Bh6 49. Bh4 Bg7 50. Bg3 Bf8 51. Ke3 Bh6+ 52. Kd3 Bf8 53. f3 Be7 54. Ke2 Bf8 55. Kf2 Kg5 56. Kg2 Be7 57. Kh2 Kg6 58. Kh3 Kh5 59. Bf4 Bf8 60. Bh2 Kg5 61. Bg3 Kf6 62. Kg4 Ke7 63. Kf5 Bg7 64. Kg6 Bc3 65. f4 Bxa5 66. f5 Bc3 67. Bh4+ Kf8 68. f6 a5 69. f7 a4 70. Bg5 Bg7 71. Be7+ Kxe7 72. Kxg7 a3 73. f8=Q+ Kd7 74. Qa8 a2 75. Qxa2 Kc8 76. Qa7 Kd8 77. Kf7 Kc8 78. Ke6 1-0

[Event "WYCC U16 Girls 2019"]
[Site "Mumbai"]
[Date "2019.10.09"]
[Round "8.9"]
[White "Achaya Vijayan"]
[Black "Hajiyeva, Laman"]
[Result "0-1"]
[ECO "D47"]
[WhiteElo "1585"]
[BlackElo "2038"]
[Annotator "NA"]
[PlyCount "74"]
[EventDate "2019.10.02"]
[EventType "swiss"]
[EventCountry "IND"]
[SourceTitle "playchess.com"]
[Source "ChessBase"]
[SourceQuality "1"]
[TimeControl "5400+30"]

1. d4 {[%emt 0:00:00]} d5 {[%emt 0:00:00]} 2. c4 {[%emt 0:00:00]} c6 {[%emt 0:00:00]} 3. Nf3 {[%emt 0:00:02]} Nf6 {[%emt 0:00:00]} 4. Nc3 {[%emt 0:00:12]} e6 {[%emt 0:00:00]} 5. e3 {[%emt 0:00:44]} Nbd7 {[%emt 0:00:02]} 6. Bd3 {[%emt 0:00:13]} dxc4 {[%emt 0:00:13]} 7. Bxc4 {[%emt 0:00:04]} b5 {[%emt 0:00:04]} 8. Bd3 {[%emt 0:00:26]} Bd6 {[%emt 0:00:18]} 9. O-O {[%emt 0:00:53]} Bb7 {[%emt 0:00:34]} 10. e4 {[%emt 0:01:12]} e5 {[%emt 0:01:08]} 11. dxe5 {[%emt 0:01:15]} Nxe5 {[%emt 0:00:25]} 12. Nxe5 {[%emt 0:00:22]} Bxe5 {[%emt 0:00:08]} 13. f4 {[%emt 0:00:11]} Bd4+ $11 {[%emt 0:02:53]} 14. Kh1 {[%emt 0:00:41]} h5 {[%emt 0:04:27]} 15. Be2 {[%emt 0:19:43]} b4 {[%emt 0:09:33]} 16. Nb1 {[%emt 0:15:58]} c5 {[%emt 0:14:35]} 17. Nd2 {[%emt 0:05:01]} Rc8 {[%emt 0:13:26]} 18. a3 {[%emt 0:05:55]} Ng4 {[%emt 0:06:07]} 19. Bxg4 {[%emt 0:05:37]} hxg4 {[%emt 0:02:03]} 20. Qxg4 {[%emt 0:01:20]} Ba6 {[%emt 0:01:07]} 21. Rf3 {[%emt 0:06:01]} Rc6 {[%emt 0:11:43]} 22. Rh3 {[%emt 0:02:47]} Rxh3 {[%emt 0:00:13]} 23. Qxh3 {[%emt 0:00:52]} Rh6 {[%emt 0:00:07]} 24. Qg3 {[%emt 0:01:45]} bxa3 {[%emt 0:03:05]} 25. Qxa3 {[%emt 0:05:21]} Qh4 {[%emt 0:03:19]} 26. Nf3 {[%emt 0:01:50]} Qf2 {[%emt 0:00:40]} 27. Qa4+ {[%emt 0:03:32]} Kf8 {[%emt 0:03:23]} 28. Be3 {[%emt 0:01:10]} Qxe3 {[%emt 0:01:55]} 29. Qd7 {[%emt 0:01:05]} g6 {[%emt 0:06:31]} 30. Qd6+ {[%emt 0:03:36]} Kg7 {[%emt 0:00:12]} 31. Qxa6 {[%emt 0:00:21]} Qxf4 {[%emt 0:05:48]} 32. Qc4 {[%emt 0:02:36]} Be5 {[%emt 0:01:44]} 33. h3 {[%emt 0:00:21]} Rxh3+ {[%emt 0:01:01]} 34. gxh3 {[%emt 0:02:34]} Qxf3+ {[%emt 0:00:05]} 35. Kg1 {[%emt 0:00:06]} Bd4+ {[%emt 0:00:14]} 36. Kh2 {[%emt 0:00:11]} Qf2+ {[%emt 0:00:05]} 37. Kh1 {[%emt 0:00:16]} Be5 {[%emt 0:00:14]} 0-1

[Event "WYCC U16 Girls 2019"]
[Site "Mumbai"]
[Date "2019.10.09"]
[Round "8.10"]
[White "Noshin, Anjum"]
[Black "Jain Nityata"]
[Result "1-0"]
[ECO "B19"]
[WhiteElo "1793"]
[BlackElo "2029"]
[Annotator "NA"]
[PlyCount "137"]
[EventDate "2019.10.02"]
[EventType "swiss"]
[EventCountry "IND"]
[SourceTitle "playchess.com"]
[Source "ChessBase"]
[SourceQuality "1"]
[TimeControl "5400+30"]

1. e4 c6 2. d4 d5 3. Nc3 dxe4 4. Nxe4 Bf5 5. Ng3 Bg6 6. Nf3 Nd7 7. h4 h6 8. h5 Bh7 9. Bd3 Bxd3 10. Qxd3 e6 11. Bd2 Ngf6 12. O-O-O Be7 13. Kb1 O-O 14. Ne4 Nxe4 {B19: Classical Caro-Kann: 4...Bf5 main line} 15. Qxe4 Nf6 16. Qe2 Qd5 17. Ne5 c5 18. dxc5 Qe4 19. Qxe4 Nxe4 20. Be3 Nxc5 {[#]} 21. g4 $146 ({Predecessor:} 21. Rd4 Rfc8 22. Rhd1 b5 23. f3 Bf6 24. Bf4 Na4 25. Rb4 Bxe5 26. Bxe5 Rc5 27. Re4 Nb6 28. g4 Nd5 29. c3 {½-½ (29) Cheparinov,I (2660)-Rodshtein,M (2622) Moscow 2010}) 21... Rfd8 22. f3 Rac8 23. b3 a6 24. Bc1 Bf6 25. Bb2 b5 26. Rhe1 Bh4 27. Rh1 Bg3 28. Rhg1 Bxe5 29. Bxe5 Nd7 30. Bb2 Nb6 31. Rxd8+ Rxd8 32. Kc1 Nd5 33. Rd1 Rc8 34. Rd4 b4 35. Kd2 f6 36. Rd3 Kf7 37. c4 bxc3+ 38. Bxc3 Ke7 39. Bb2 Kd6 40. Rd4 e5 41. Ra4 Rc6 42. Ba3+ Ke6 43. Rc4 Rb6 ({Black should play} 43... Rc7 $14) 44. Rc8 Nf4 (44... a5 $16) 45. Rc7 g6 46. hxg6 Nxg6 47. Rh7 Nh4 48. Ke3 Rc6 49. Bb4 Rc2 50. Re7+ Kd5 51. Rd7+ Kc6 52. Rd6+ Kb5 53. a3 f5 54. Rd5+ Kc6 55. Rxe5 f4+ 56. Kd3 Rb2 57. Re6+ Kd5 58. Rd6+ Ke5 59. Rxh6 Rh2 60. Kc4 Nxf3 61. Bc3+ Ke4 62. Re6+ Ne5+ 63. Rxe5+ Kf3 64. g5 Rg2 65. Kd3 Rg1 66. Bd2 Rb1 67. Kc2 $18 Rf1 68. Rf5 Kg3 69. Rxf4 1-0

[Event "WYCC U16 Girls 2019"]
[Site "Mumbai"]
[Date "2019.10.09"]
[Round "8.11"]
[White "Tomcikova, Dominika"]
[Black "Kvendseth, Thyra"]
[Result "0-1"]
[ECO "C54"]
[WhiteElo "1845"]
[BlackElo "1989"]
[Annotator "NA"]
[PlyCount "136"]
[EventDate "2019.10.02"]
[EventType "swiss"]
[EventCountry "IND"]
[SourceTitle "playchess.com"]
[Source "ChessBase"]
[SourceQuality "1"]
[TimeControl "5400+30"]

1. e4 e5 2. Nf3 Nc6 3. Bc4 Bc5 4. c3 Nf6 5. d3 d6 6. b4 Bb6 7. a4 a5 8. b5 Ne7 9. h3 Ng6 10. O-O $11 h6 11. Bb3 O-O 12. Na3 c6 13. Nc4 Bc7 14. Re1 Re8 15. Qc2 d5 16. Ne3 Nf4 17. Nf1 N6h5 18. Ng3 Nxg3 19. fxg3 dxe4 20. dxe4 Ne6 21. Be3 Qe7 22. Qf2 Bd7 23. c4 c5 24. Nh4 Nd4 25. Bd1 Be6 26. Rc1 Rad8 27. Nf5 Bxf5 28. exf5 Qf6 29. g4 Qd6 30. g3 b6 31. Bc2 Re7 32. Be4 Red7 33. Bd5 Qf6 34. h4 Rxd5 35. cxd5 Rxd5 36. g5 hxg5 37. hxg5 Qe7 38. Kg2 e4 39. f6 Qe6 40. fxg7 Rf5 41. Qg1 Nf3 42. Qh1 Qa2+ 43. Kh3 Qe6 44. Kg2 Nxe1+ 45. Rxe1 Kxg7 46. Qh6+ Qxh6 47. gxh6+ Kh7 48. Bc1 Re5 49. g4 Re6 50. Rf1 f6 51. g5 Be5 52. gxf6 Bxf6 53. Rd1 Bd4 54. Re1 e3 55. Kf3 Kxh6 56. Bxe3+ Rxe3+ 57. Rxe3 Bxe3 58. Kxe3 Kg5 59. Ke4 Kf6 60. Kd5 Ke7 61. Kc6 c4 62. Kxb6 c3 63. Kxa5 c2 64. b6 c1=Q 65. Ka6 Kd7 66. a5 Kc6 67. b7 Qc4+ 68. Ka7 Qc5+ 0-1

[Event "WYCC U16 Girls 2019"]
[Site "Mumbai"]
[Date "2019.10.09"]
[Round "8.12"]
[White "Poorna Sri M.K"]
[Black "Moncada Correa, Sara"]
[Result "0-1"]
[ECO "C95"]
[WhiteElo "1787"]
[BlackElo "1939"]
[Annotator "NA"]
[PlyCount "94"]
[EventDate "2019.10.02"]
[EventType "swiss"]
[EventCountry "IND"]
[SourceTitle "playchess.com"]
[Source "ChessBase"]
[SourceQuality "1"]
[TimeControl "5400+30"]

1. e4 {[%emt 0:00:00]} e5 {[%emt 0:00:37]} 2. Nf3 {[%emt 0:00:00]} Nc6 {[%emt 0:00:40]} 3. Bb5 {[%emt 0:00:28]} a6 {[%emt 0:00:54]} 4. Ba4 {[%emt 0:00:11]} Nf6 {[%emt 0:01:20]} 5. O-O {[%emt 0:00:23]} Be7 {[%emt 0:01:51]} 6. Re1 {[%emt 0:00:30]} b5 {[%emt 0:00:50]} 7. Bb3 {[%emt 0:00:06]} d6 {[%emt 0:00:26]} 8. c3 {[%emt 0:00:11]} O-O {[%emt 0:01:06]} 9. h3 {[%emt 0:00:28]} Nb8 {[%emt 0:01:20]} 10. d4 {[%emt 0:00:13]} Nbd7 {[%emt 0:00:07]} 11. Nbd2 {[%emt 0:00:08]} Bb7 {[%emt 0:02:09]} 12. Bc2 $14 {[%emt 0:00:08]} c5 {[%emt 0:00:42]} 13. Nf1 {[%emt 0:05:36]} Re8 {[%emt 0:02:20]} 14. Ng3 {[%emt 0:03:02]} cxd4 {[%emt 0:04:19]} 15. cxd4 {[%emt 0:00:37]} exd4 {[%emt 0:00:14]} 16. Nxd4 {[%emt 0:04:41]} d5 {[%emt 0:02:15]} 17. e5 {[%emt 0:09:16]} Bb4 {[%emt 0:01:03]} 18. f4 {[%emt 0:22:54]} Bxe1 {[%emt 0:02:11]} 19. Qxe1 {[%emt 0:00:05]} g6 {[%emt 0:19:42]} 20. Ngf5 {[%emt 0:15:05]} gxf5 {[%emt 0:07:46]} 21. Nxf5 {[%emt 0:01:13]} Kh8 {[%emt 0:02:24]} 22. Nd6 {[%emt 0:04:04]} Re7 {[%emt 0:06:02]} 23. Qh4 {[%emt 0:05:52]} Ne4 {[%emt 0:02:42]} 24. Nxb7 {[%emt 0:04:26]} Qb6+ {[%emt 0:01:13]} 25. Kh2 {[%emt 0:00:58]} f6 {[%emt 0:02:21]} 26. Nd6 {[%emt 0:06:03]} Nxd6 27. exd6 {[%emt 0:03:14]} Qxd6 {[%emt 0:02:42]} 28. b3 {[%emt 0:02:07]} Rg8 {[%emt 0:01:16]} 29. Bf5 {[%emt 0:03:38]} d4 {[%emt 0:05:21]} 30. Bxd7 {[%emt 0:06:20]} Rxd7 {[%emt 0:00:16]} 31. Bd2 {[%emt 0:00:24]} Qc6 {[%emt 0:00:38]} 32. Rg1 {[%emt 0:00:20]} Re7 {[%emt 0:01:36]} 33. Qf2 {[%emt 0:01:20]} Qd5 {[%emt 0:04:31]} 34. Bb4 {[%emt 0:00:47]} Re6 {[%emt 0:01:34]} 35. Rd1 {[%emt 0:01:27]} Re4 {[%emt 0:00:58]} 36. Rd2 {[%emt 0:01:07]} Re3 {[%emt 0:05:52]} 37. Ba5 {[%emt 0:00:35]} Reg3 {[%emt 0:00:46]} 38. Qf1 {[%emt 0:00:27]} d3 {[%emt 0:01:33]} 39. Bc3 {[%emt 0:00:17]} Qc6 {[%emt 0:00:14]} 40. Bb2 {[%emt 0:00:26]} Rxg2+ {[%emt 0:00:48]} 41. Rxg2 {[%emt 0:00:24]} Rxg2+ {[%emt 0:00:09]} 42. Qxg2 {[%emt 0:00:14]} Qxg2+ {[%emt 0:00:09]} 43. Kxg2 {[%emt 0:00:04]} d2 {[%emt 0:00:14]} 44. Bxf6+ {[%emt 0:00:18]} Kg8 {[%emt 0:00:07]} 45. Kg3 {[%emt 0:00:29]} d1=Q {[%emt 0:00:21]} 46. Kh4 {[%emt 0:00:05]} Kf7 {[%emt 0:00:38]} 47. Bg5 {[%emt 0:00:11]} Qf3 {[%emt 0:00:24]} 0-1

[Event "WYCC U16 Girls 2019"]
[Site "Mumbai"]
[Date "2019.10.10"]
[Round "9.1"]
[White "Garifullina, Leya"]
[Black "Salonika, Saina"]
[Result "1/2-1/2"]
[ECO "B90"]
[WhiteElo "2330"]
[BlackElo "2051"]
[Annotator "ChessBase"]
[PlyCount "94"]
[EventDate "2019.10.02"]
[EventType "swiss"]
[EventCountry "IND"]
[SourceTitle "playchess.com"]
[Source "ChessBase"]
[SourceQuality "1"]
[TimeControl "5400+30"]

1. e4 {[%emt 0:00:00]} c5 {[%emt 0:00:00]} 2. Nf3 {[%emt 0:00:00]} d6 {[%emt 0:00:00]} 3. d4 {[%emt 0:00:05]} cxd4 {[%emt 0:00:00]} 4. Nxd4 {[%emt 0:00:07]} Nf6 {[%emt 0:00:00]} 5. Nc3 {[%emt 0:00:12]} a6 {[%emt 0:00:00]} 6. h3 {[%emt 0:00:12]} e5 {[%emt 0:00:00]} 7. Nb3 {[%emt 0:00:29]} h5 {[%emt 0:00:31]} 8. f4 {[%emt 0:00:34]} Be7 {[%emt 0:10:31]} 9. Be2 {[%emt 0:00:36]} b5 {[%emt 0:05:53]} 10. O-O {[%emt 0:04:49]} Qb6+ {[%emt 0:06:57]} 11. Kh1 {[%emt 0:01:11]} Bb7 {[%emt 0:02:40]} 12. Bf3 {[%emt 0:05:14]} Nbd7 {[%emt 0:03:56]} 13. a4 {[%emt 0:02:26]} b4 {[%emt 0:08:34]} 14. a5 {[%emt 0:00:28]} Qa7 {[%emt 0:00:44]} 15. Nd5 {[%emt 0:00:30]} Bxd5 {[%emt 0:00:16]} 16. exd5 {[%emt 0:00:04]} e4 {[%emt 0:00:28]} 17. Be2 {[%emt 0:00:08]} Rc8 {[%emt 0:00:47]} 18. Nd4 {[%emt 0:04:22]} Nb8 {[%emt 0:04:20]} 19. Nf5 {[%emt 0:02:19]} Bf8 {[%emt 0:13:15]} 20. Ne3 {[%emt 0:01:11]} Nbd7 {[%emt 0:11:07]} 21. Ra4 {[%emt 0:04:17]} Rb8 {[%emt 0:02:49]} 22. Qe1 {[%emt 0:07:41]} Qb7 {[%emt 0:02:45]} 23. Bd2 {[%emt 0:03:04]} Nxd5 {[%emt 0:00:27]} 24. Nxd5 {[%emt 0:01:17]} Qxd5 {[%emt 0:00:05]} 25. Rxb4 {[%emt 0:00:41]} Rxb4 {[%emt 0:00:37]} 26. Bxb4 {[%emt 0:00:04]} Qc6 {[%emt 0:00:20]} 27. Qc3 {[%emt 0:01:05]} Qb7 {[%emt 0:03:42]} 28. Ba3 {[%emt 0:02:54]} d5 {[%emt 0:00:18]} 29. Bxf8 {[%emt 0:02:23]} Kxf8 {[%emt 0:00:07]} 30. Qd4 {[%emt 0:01:00]} Rh6 {[%emt 0:01:24]} 31. Rd1 {[%emt 0:01:12]} Rd6 {[%emt 0:00:12]} 32. c4 {[%emt 0:05:55]} Qb4 {[%emt 0:00:18]} 33. Bxh5 {[%emt 0:01:27]} Qxa5 {[%emt 0:00:23]} 34. Be2 {[%emt 0:03:18]} Qb6 {[%emt 0:01:52]} 35. cxd5 {[%emt 0:00:45]} Qxd4 {[%emt 0:02:09]} 36. Rxd4 {[%emt 0:00:06]} f5 {[%emt 0:00:02]} 37. g3 {[%emt 0:03:48]} Ke7 {[%emt 0:04:44]} 38. Kg2 {[%emt 0:02:24]} a5 {[%emt 0:00:48]} 39. Bc4 {[%emt 0:01:47]} Rb6 {[%emt 0:00:58]} 40. Rd2 {[%emt 0:00:47]} Kd6 {[%emt 0:00:35]} 41. g4 {[%emt 0:01:32]} Rb4 {[%emt 0:10:12]} 42. Ba2 {[%emt 0:01:06]} fxg4 {[%emt 0:04:09]} 43. hxg4 {[%emt 0:00:30]} e3 {[%emt 0:00:00]} 44. Re2 {[%emt 0:00:00]} Rxf4 {[%emt 0:00:00]} 45. Rxe3 {[%emt 0:00:00]} Rxg4+ {[%emt 0:00:00]} 46. Kh3 {[%emt 0:00:00]} Rb4 {[%emt 0:00:00]} 47. Ra3 {[%emt 0:00:00]} Rxb2 {[%emt 0:00:00]} 1/2-1/2

[Event "WYCC U16 Girls 2019"]
[Site "Mumbai"]
[Date "2019.10.10"]
[Round "9.2"]
[White "Bommini Mounika Akshaya"]
[Black "Nurgali, Nazerke"]
[Result "1/2-1/2"]
[ECO "B12"]
[WhiteElo "2017"]
[BlackElo "2194"]
[Annotator "NA"]
[PlyCount "148"]
[EventDate "2019.10.02"]
[EventType "swiss"]
[EventCountry "IND"]
[SourceTitle "playchess.com"]
[Source "ChessBase"]
[SourceQuality "1"]
[TimeControl "5400+30"]

1. e4 {[%emt 0:00:00]} c6 {[%emt 0:00:00]} 2. d4 {[%emt 0:00:00]} d5 {[%emt 0:00:00]} 3. e5 {[%emt 0:00:00]} Bf5 {[%emt 0:00:10]} 4. Nc3 {[%emt 0:00:27]} e6 {[%emt 0:00:26]} 5. g4 {[%emt 0:00:09]} Bg6 {[%emt 0:00:14]} 6. Nge2 {[%emt 0:00:11]} Bb4 {[%emt 0:02:02]} 7. Ng3 {[%emt 0:11:10]} c5 {[%emt 0:03:34]} 8. a3 {[%emt 0:05:07]} Bxc3+ {[%emt 0:00:28]} 9. bxc3 {[%emt 0:00:07]} cxd4 {[%emt 0:00:15]} 10. cxd4 {[%emt 0:03:38]} Qa5+ {[%emt 0:01:54]} 11. Bd2 {[%emt 0:14:03]} Qa4 {[%emt 0:00:32]} 12. c3 {[%emt 0:03:26]} Qxd1+ {[%emt 0:01:28]} 13. Kxd1 {[%emt 0:01:19]} Nc6 {[%emt 0:00:15]} 14. f4 {[%emt 0:07:03]} Nge7 {[%emt 0:01:44]} 15. Be2 {[%emt 0:02:21]} Be4 {[%emt 0:07:14]} 16. Nxe4 {[%emt 0:07:46]} dxe4 {[%emt 0:00:04]} 17. Re1 {[%emt 0:00:28]} Nd5 {[%emt 0:04:17]} 18. Bc4 {[%emt 0:02:54]} h5 {[%emt 0:02:41]} 19. g5 {[%emt 0:00:59]} Nb6 {[%emt 0:01:17]} 20. Ba2 {[%emt 0:04:02]} Na5 {[%emt 0:02:20]} 21. Rb1 {[%emt 0:08:18]} Rc8 {[%emt 0:01:55]} 22. Rxe4 {[%emt 0:02:57]} Nac4 {[%emt 0:00:31]} 23. Bxc4 {[%emt 0:07:04]} Rxc4 {[%emt 0:00:16]} 24. Rb4 {[%emt 0:01:10]} Rc7 {[%emt 0:01:40]} 25. Ke2 {[%emt 0:03:03]} O-O {[%emt 0:00:38]} 26. Kd3 {[%emt 0:00:19]} Rfc8 {[%emt 0:00:25]} 27. Re1 {[%emt 0:00:48]} Nd5 {[%emt 0:01:27]} 28. Rb3 {[%emt 0:00:30]} b6 {[%emt 0:00:56]} 29. Ra1 {[%emt 0:01:21]} Rc4 {[%emt 0:00:53]} 30. a4 {[%emt 0:00:11]} a6 {[%emt 0:00:19]} 31. Raa3 {[%emt 0:01:19]} Kh7 {[%emt 0:00:19]} 32. Ke4 {[%emt 0:02:28]} g6 {[%emt 0:00:28]} 33. Kd3 {[%emt 0:00:10]} Kg7 {[%emt 0:04:36]} 34. Ke4 {[%emt 0:00:25]} R8c6 {[%emt 0:02:55]} 35. Kd3 {[%emt 0:00:21]} Kf8 {[%emt 0:00:38]} 36. Ke4 {[%emt 0:02:33]} Ke7 {[%emt 0:00:17]} 37. Kd3 {[%emt 0:00:06]} Kd7 {[%emt 0:00:48]} 38. Ra1 {[%emt 0:01:22]} Kc7 {[%emt 0:00:31]} 39. Ra2 {[%emt 0:00:11]} Kb7 {[%emt 0:00:39]} 40. Ra1 {[%emt 0:00:16]} a5 {[%emt 0:03:32]} 41. Raa3 {[%emt 0:02:14]} Ka6 {[%emt 0:00:37]} 42. Ra1 {[%emt 0:00:07]} Nc7 {[%emt 0:02:15]} 43. Rba3 {[%emt 0:00:06]} Nd5 {[%emt 0:03:01]} 44. Rb3 {[%emt 0:00:06]} Ne7 {[%emt 0:00:05]} 45. Be3 {[%emt 0:01:00]} Nd5 {[%emt 0:16:58]} 46. Bd2 {[%emt 0:00:25]} Rc8 {[%emt 0:00:44]} 47. Ra2 {[%emt 0:00:57]} R8c7 {[%emt 0:12:43]} 48. Ra1 {[%emt 0:00:13]} Ka7 {[%emt 0:02:39]} 49. Ra2 {[%emt 0:00:30]} R7c6 {[%emt 0:02:22]} 50. Ra1 {[%emt 0:00:07]} Nc7 {[%emt 0:00:43]} 51. Rba3 {[%emt 0:00:42]} Ka6 {[%emt 0:03:22]} 52. Be1 {[%emt 0:00:17]} Kb7 {[%emt 0:05:55]} 53. Rb3 {[%emt 0:00:46]} Nd5 {[%emt 0:02:36]} 54. Bd2 {[%emt 0:00:02]} Rc7 {[%emt 0:00:12]} 55. Raa3 {[%emt 0:00:39]} Kc8 {[%emt 0:01:35]} 56. Ra1 {[%emt 0:00:16]} Kd7 {[%emt 0:00:44]} 57. Raa3 {[%emt 0:00:14]} R7c6 {[%emt 0:02:03]} 58. Ra1 {[%emt 0:00:15]} Kc7 {[%emt 0:00:05]} 59. Raa3 {[%emt 0:00:11]} Kb7 {[%emt 0:00:38]} 60. Ra1 {[%emt 0:00:10]} Nc7 {[%emt 0:00:13]} 61. Be1 {[%emt 0:00:15]} Ka6 {[%emt 0:02:48]} 62. Rba3 {[%emt 0:00:04]} Nd5 {[%emt 0:01:41]} 63. Bd2 {[%emt 0:00:07]} Rc7 {[%emt 0:00:21]} 64. Rb3 {[%emt 0:01:26]} Rc8 {[%emt 0:00:34]} 65. Rba3 {[%emt 0:00:44]} Ka7 {[%emt 0:01:32]} 66. Rb3 {[%emt 0:00:19]} R8c6 {[%emt 0:00:14]} 67. Rba3 {[%emt 0:00:15]} Ne7 {[%emt 0:01:13]} 68. Rb3 {[%emt 0:00:24]} Nf5 {[%emt 0:00:56]} 69. Be1 {[%emt 0:00:11]} Ne7 {[%emt 0:00:26]} 70. Bd2 {[%emt 0:00:05]} Nd5 {[%emt 0:00:06]} 71. Rba3 {[%emt 0:00:16]} Nc7 {[%emt 0:00:07]} 72. Be1 {[%emt 0:00:07]} Kb7 {[%emt 0:00:47]} 73. Bd2 {[%emt 0:00:12]} Ka7 {[%emt 0:00:17]} 74. Be1 {[%emt 0:00:06]} Nd5 {[%emt 0:00:45]} 1/2-1/2

[Event "WYCC U16 Girls 2019"]
[Site "Mumbai"]
[Date "2019.10.10"]
[Round "9.3"]
[White "Bulatova, Kamaliya"]
[Black "Mahdian, Anousha"]
[Result "1-0"]
[ECO "A13"]
[WhiteElo "2181"]
[BlackElo "2103"]
[Annotator "NA"]
[PlyCount "77"]
[EventDate "2019.10.02"]
[EventType "swiss"]
[EventCountry "IND"]
[SourceTitle "playchess.com"]
[Source "ChessBase"]
[SourceQuality "1"]
[TimeControl "5400+30"]

1. Nf3 {[%emt 0:00:00]} Nf6 {[%emt 0:06:29]} 2. c4 {[%emt 0:00:00]} e6 {[%emt 0:04:48]} 3. g3 {[%emt 0:01:25]} d5 {[%emt 0:03:38]} 4. Bg2 {[%emt 0:00:17]} dxc4 {[%emt 0:01:46]} 5. Qa4+ {[%emt 0:00:35]} Bd7 {[%emt 0:05:59]} 6. Qxc4 {[%emt 0:00:36]} Bc6 {[%emt 0:00:01]} 7. O-O {[%emt 0:05:14]} Nbd7 {[%emt 0:01:45]} 8. b3 {[%emt 0:06:47]} a6 {[%emt 0:10:24]} 9. Qc2 {[%emt 0:02:49]} Bd6 {[%emt 0:04:10]} 10. Bb2 {[%emt 0:01:00]} Qe7 {[%emt 0:00:15]} 11. d3 {[%emt 0:01:06]} O-O {[%emt 0:04:53]} 12. e4 {[%emt 0:06:14]} e5 {[%emt 0:01:04]} 13. Nbd2 {[%emt 0:05:46]} Rfe8 {[%emt 0:19:28]} 14. Nc4 {[%emt 0:04:07]} Bb5 {[%emt 0:06:26]} 15. Nh4 {[%emt 0:14:55]} g6 {[%emt 0:05:59]} 16. Rad1 {[%emt 0:07:21]} Bxc4 {[%emt 0:03:16]} 17. dxc4 {[%emt 0:03:05]} Ba3 {[%emt 0:00:56]} 18. Ba1 {[%emt 0:02:08]} a5 {[%emt 0:01:57]} 19. Qd2 {[%emt 0:02:45]} Nc5 {[%emt 0:07:51]} 20. Qe3 {[%emt 0:01:35]} a4 {[%emt 0:03:03]} 21. f4 {[%emt 0:10:07]} Ncxe4 {[%emt 0:04:07]} 22. Kh1 {[%emt 0:01:01]} Bc5 {[%emt 0:00:06]} 23. Qf3 {[%emt 0:00:54]} exf4 {[%emt 0:01:09]} 24. Qxf4 {[%emt 0:03:39]} Nh5 {[%emt 0:00:24]} 25. Qf3 {[%emt 0:03:42]} f5 {[%emt 0:00:07]} 26. Nxf5 {[%emt 0:00:42]} gxf5 {[%emt 0:00:05]} 27. Qxh5 {[%emt 0:00:08]} Rf8 {[%emt 0:01:21]} 28. Rde1 {[%emt 0:02:44]} Qe8 {[%emt 0:01:54]} 29. Qe2 {[%emt 0:02:15]} axb3 {[%emt 0:00:24]} 30. axb3 {[%emt 0:01:43]} Qg6 {[%emt 0:00:37]} 31. Bf3 {[%emt 0:00:35]} Rfe8 {[%emt 0:00:31]} 32. Qb2 {[%emt 0:01:03]} Rxa1 {[%emt 0:00:09]} 33. Qxa1 {[%emt 0:00:06]} c6 {[%emt 0:00:39]} 34. Bxe4 {[%emt 0:02:27]} fxe4 {[%emt 0:00:14]} 35. Rf4 {[%emt 0:01:17]} e3 {[%emt 0:00:25]} 36. Qd1 {[%emt 0:00:14]} Qe6 {[%emt 0:00:53]} 37. Rg4+ {[%emt 0:03:03]} Kh8 {[%emt 0:00:07]} 38. Qa1+ {[%emt 0:00:13]} Qe5 {[%emt 0:00:18]} 39. Re4 {[%emt 0:00:14]} 1-0